bitfinex-derivatives/quotes_SOLF0:USTF0_20260304
["timestamp","ask_amount","ask_price","bid_price","bid_amount"]
[1772614354758,10.134,88.802,88.741,0.29634483]
[1772614354958,3.82789627,88.819,88.76,4.35066219]
[1772614355554,10.134,88.803,88.76,4.35066219]
[1772614356359,10.133,88.812,88.749,10.14]
[1772614356555,10.133,88.812,88.76,4.35066219]
[1772614356854,3.82789627,88.819,88.761,10.139]
[1772614357056,3.8195121,88.849,88.761,10.139]
[1772614357455,10.131,88.832,88.767,10.138]
[1772614357661,3.8195121,88.849,88.78,4.35066219]
[1772614358253,10.13,88.838,88.78,4.35066219]
[1772614358557,3.82595443,88.859,88.781,0.3002285]
[1772614358764,3.82595443,88.859,88.791,10.135]
[1772614359262,3.82595443,88.859,88.8,4.35066219]
[1772614359659,3.82595443,88.859,88.792,0.3002285]
[1772614359860,3.82595443,88.859,88.8,4.35066219]
[1772614360156,10.128,88.858,88.8,4.35066219]
[1772614360362,8.17363213,88.88,88.791,0.3061975]
[1772614360558,3.82296994,88.879,88.791,0.3061975]
[1772614360863,3.82296994,88.879,88.811,0.3061975]
[1772614361259,3.82296994,88.879,88.812,0.3061975]
[1772614361459,8.17363213,88.9,88.812,0.3061975]
[1772614361661,3.82296994,88.899,88.812,0.3061975]
[1772614362559,3.82296994,88.899,88.831,0.26392957]
[1772614363262,3.82296994,88.899,88.83,4.35066219]
[1772614363263,3.8441039,88.879,88.786,0.26392957]
[1772614363463,3.8441039,88.869,88.791,0.26392957]
[1772614363863,3.8441039,88.869,88.792,0.26392957]
[1772614364168,3.82240073,88.899,88.811,0.30733591]
[1772614364554,3.82240073,88.899,88.83,4.35066219]
[1772614365259,3.82240073,88.929,88.85,4.35066219]
[1772614365666,3.82240073,88.928,88.851,0.30733591]
[1772614365855,3.82240073,88.95,88.871,0.30733591]
[1772614366055,3.82240073,88.95,88.89,4.35066219]
[1772614367667,4.35066219,88.97,88.881,0.1651575]
[1772614367668,8.24415213,88.97,88.881,0.1651575]
[1772614367862,3.89348994,88.969,88.9,4.35066219]
[1772614368360,3.89348994,88.969,88.881,0.1651575]
[1772614368562,3.89348994,88.969,88.9,4.35066219]
[1772614369067,3.98268152,88.968,88.9,4.35066219]
[1772614369968,3.98913185,89.009,88.92,4.35066219]
[1772614371468,3.98913185,89.008,88.921,10.12]
[1772614371664,3.98913185,89.008,88.9,4.35066219]
[1772614371665,3.98913185,89.008,88.94,4.35066219]
[1772614371976,3.98913185,89.008,88.943,10.15238234]
[1772614372365,8.30922044,89.03,88.944,0.03438234]
[1772614372667,3.95855825,89.009,88.922,0.03438234]
[1772614373067,14.06955825,89.009,88.922,0.03438234]
[1772614373270,3.95855825,89.008,88.922,0.03438234]
[1772614373664,3.95855825,88.988,88.912,10.121]
[1772614374260,3.90250623,88.985,88.91,4.35066219]
[1772614374465,3.90250623,88.949,88.88,4.35066219]
[1772614374865,4.35066219,88.97,88.881,0.17903988]
[1772614375069,3.90250623,88.969,88.881,0.17903988]
[1772614375265,3.90250623,88.969,88.901,0.17903988]
[1772614375466,3.90250623,88.969,88.901,10.30203988]
[1772614376374,3.90725604,88.999,88.921,0.13698677]
[1772614376872,3.90725604,88.994,88.921,0.13698677]
[1772614377071,3.90725604,88.994,88.908,10.122]
[1772614378072,3.91072971,88.977,88.9,4.35066219]
[1772614378261,3.91072971,88.977,88.895,10.123]
[1772614378463,3.91072971,88.977,88.881,0.13003943]
[1772614378666,3.91072971,88.969,88.896,10.123]
[1772614379066,3.91072971,88.969,88.901,0.13003943]
[1772614380070,3.91072971,88.969,88.9,4.35066219]
[1772614381073,3.91018814,88.966,88.89,4.35066219]
[1772614381274,3.91018814,88.959,88.89,4.35066219]
[1772614381674,3.91018814,88.957,88.89,4.35066219]
[1772614382168,3.91018814,88.957,88.882,0.13112257]
[1772614382473,10.118,88.942,88.882,0.13112257]
[1772614382872,3.90250623,88.917,88.852,0.21656963]
[1772614383373,3.90250623,88.939,88.852,0.21656963]
[1772614384170,10.12,88.929,88.866,10.127]
[1772614384371,10.12,88.929,88.852,0.21656963]
[1772614384572,3.90250623,88.928,88.86,4.35066219]
[1772614384774,3.90250623,88.923,88.86,4.35066219]
[1772614385469,3.90250623,88.929,88.861,0.25170477]
[1772614385872,3.90250623,88.95,88.871,0.25170477]
[1772614386069,3.90250623,88.95,88.891,0.22475894]
[1772614386567,3.90250623,88.95,88.85,4.35066219]
[1772614386568,3.90250623,88.949,88.866,0.22475894]
[1772614386771,3.90250623,88.929,88.85,4.35066219]
[1772614387578,3.90250623,88.916,88.85,4.35066219]
[1772614388077,3.90250623,88.916,88.853,10.128]
[1772614388277,3.90250623,88.916,88.85,4.35066219]
[1772614389775,3.90250623,88.916,88.852,0.23552237]
[1772614389975,3.90250623,88.916,88.853,10.128]
[1772614390479,3.90250623,88.916,88.863,10.127]
[1772614391276,10.121,88.915,88.86,4.33796485]
[1772614391479,3.90250623,88.914,88.84,4.33796485]
[1772614391673,3.90250623,88.909,88.84,4.33796485]
[1772614392384,10.123,88.897,88.84,4.33796485]
[1772614393478,4.33796485,88.95,88.812,0.31603414]
[1772614393479,4.33796485,88.9,88.812,0.31603414]
[1772614394372,4.33796485,88.9,88.756,157.73]
[1772614394373,4.33796485,88.91,88.823,35.94409523]
[1772614394875,4.33796485,88.95,88.823,35.94409523]
[1772614394876,4.33796485,88.89,88.823,35.94409523]
[1772614395076,4.33796485,88.89,88.801,35.94409523]
[1772614395481,10.125,88.881,88.813,10.133]
[1772614395681,4.33796485,88.89,88.813,10.133]
[1772614395987,4.33796485,88.9,88.814,35.94409523]
[1772614396284,4.33796485,88.9,88.82,4.33796485]
[1772614396979,20.242,88.918,88.814,35.94409523]
[1772614397183,4.33796485,88.89,88.814,35.94409523]
[1772614398288,10.127,88.869,88.805,36.03186434]
[1772614398483,4.33796485,88.89,88.81,40.36982919]
[1772614398985,10.33937239,88.961,88.831,36.03687446]
[1772614399175,4.33796485,88.92,88.851,36.03687446]
[1772614399582,4.33796485,88.94,88.851,36.03687446]
[1772614399880,4.33796485,88.94,88.871,36.03687446]
[1772614400076,20.23,88.972,88.871,36.03687446]
[1772614400281,10.119,88.933,88.874,36.05109246]
[1772614400887,4.33796485,88.97,88.874,36.05109246]
[1772614400888,10.118,88.944,88.874,46.17709246]
[1772614401082,4.33796485,88.97,88.875,36.07096548]
[1772614401286,4.33796485,88.95,88.875,36.07096548]
[1772614401485,10.119,88.932,88.875,36.07096548]
[1772614402084,4.33796485,88.96,88.875,36.07096548]
[1772614402385,4.33796485,88.94,88.81,9.90780254]
[1772614402585,4.33796485,88.94,88.861,36.0726607]
[1772614403186,10.33937239,89.001,88.861,36.0726607]
[1772614403187,20.23,88.974,88.861,36.0726607]
[1772614403588,4.33796485,88.95,88.861,36.0726607]
[1772614403784,10.119,88.932,88.861,36.0726607]
[1772614403990,4.33796485,88.95,88.861,36.0726607]
[1772614404187,4.33796485,88.96,88.88,40.43317558]
[1772614406288,10.33937239,89.002,88.88,40.43317558]
[1772614406289,10.33937239,88.994,88.88,4.33796485]
[1772614406496,4.33796485,88.96,88.881,36.14171414]
[1772614406697,4.33796485,88.94,88.861,36.14171414]
[1772614407296,10.122,88.913,88.861,36.14171414]
[1772614407591,20.23,88.97,88.861,36.14171414]
[1772614407592,4.33796485,88.95,88.861,36.14171414]
[1772614408291,4.33796485,88.95,88.863,36.17545689]
[1772614408493,4.33796485,88.95,88.881,36.17545689]
[1772614409087,10.12,88.93,88.881,36.17545689]
[1772614409290,4.33796485,88.95,88.881,36.17545689]
[1772614409885,4.33796485,88.93,88.841,36.19179862]
[1772614410298,4.33796485,88.93,88.851,36.21821325]
[1772614410493,4.33796485,88.95,88.851,36.21821325]
[1772614410691,4.33796485,88.92,88.851,36.21821325]
[1772614412195,4.33796485,88.92,88.84,4.33796485]
[1772614412196,10.121,88.915,88.853,36.21680917]
[1772614413096,10.122,88.906,88.853,36.21680917]
[1772614413400,4.33796485,88.94,88.861,36.23176341]
[1772614413601,13.81063315,88.992,88.8,24.60696485]
[1772614413602,10.124,88.893,88.84,36.23176341]
[1772614414298,10.124,88.893,88.832,10.131]
[1772614414299,10.124,88.893,88.842,36.21661892]
[1772614414599,10.123,88.902,88.843,44.467519]
[1772614414896,10.123,88.902,88.844,8.25090008]
[1772614415097,10.123,88.902,88.845,8.25090008]
[1772614415299,4.33796485,88.91,88.846,8.25090008]
[1772614415499,4.33796485,88.89,88.823,36.23044086]
[1772614415694,157.396,88.945,88.823,36.23044086]
[1772614415903,4.33796485,88.9,88.823,36.23044086]
[1772614417196,10.125,88.879,88.823,36.23044086]
[1772614418102,10.125,88.879,88.825,36.2677819]
[1772614418499,10.126,88.87,88.825,36.2677819]
[1772614418905,4.33796485,88.9,88.825,36.2677819]
[1772614419104,4.33796485,88.94,88.86,9.90780254]
[1772614419405,4.33796485,88.94,88.864,36.28091042]
[1772614419606,4.33796485,88.94,88.865,36.28091042]
[1772614419800,4.33796485,88.95,88.871,36.28091042]
[1772614421009,10.12,88.927,88.871,36.28091042]
[1772614421408,4.33796485,88.93,88.863,9.90780254]
[1772614421611,4.33796485,88.93,88.852,36.43026164]
[1772614421905,20.234,88.956,88.852,36.43026164]
[1772614422210,4.33796485,88.95,88.871,36.49962955]
[1772614422607,10.12,88.923,88.871,36.49962955]
[1772614423509,4.33796485,88.95,88.854,36.51460406]
[1772614423510,10.122,88.913,88.854,36.51460406]
[1772614424102,10.123,88.904,88.854,36.51460406]
[1772614424310,4.33796485,88.91,88.835,36.52860415]
[1772614425208,10.125,88.884,88.835,36.52860415]
[1772614425407,4.33796485,88.89,88.823,13.19848245]
[1772614425712,4.33796485,88.89,88.816,36.54322583]
[1772614425713,10.125,88.884,88.816,36.54322583]
[1772614425908,4.33796485,88.89,88.816,36.54322583]
[1772614426309,4.33796485,88.87,88.816,36.54322583]
[1772614427208,10.127,88.865,88.816,36.54322583]
[1772614427413,4.33796485,88.87,88.817,8.15275]
[1772614427615,4.33796485,88.87,88.818,8.15275]
[1772614427814,4.33796485,88.87,88.819,0.00075]
[1772614428122,4.33796485,88.85,88.783,36.59311312]
[1772614428324,10.13,88.836,88.783,36.59311312]
[1772614428812,4.33796485,88.85,88.783,36.59311312]
[1772614429019,4.33796485,88.9,88.761,36.59311312]
[1772614429020,10.131,88.827,88.761,36.59311312]
[1772614429320,4.33796485,88.84,88.771,36.62168523]
[1772614429515,10.132,88.822,88.771,36.62168523]
[1772614429821,4.33796485,88.82,88.748,36.62168523]
[1772614430617,20.255,88.865,88.748,36.62168523]
[1772614430822,4.33796485,88.83,88.748,36.62168523]
[1772614431126,10.133,88.808,88.748,36.62168523]
[1772614431317,4.33796485,88.81,88.748,36.62168523]
[1772614433216,10.133,88.809,88.748,36.62168523]
[1772614433921,10.132,88.823,88.752,36.76842821]
[1772614434930,4.33796485,88.85,88.771,36.78455389]
[1772614435320,10.13,88.836,88.771,36.78455389]
[1772614435726,4.33796485,88.85,88.771,36.78455389]
[1772614436028,4.33796485,88.83,88.771,36.78455389]
[1772614436235,4.33796485,88.86,88.771,36.78455389]
[1772614436824,4.33796485,88.86,88.77,4.33796485]
[1772614436825,10.129,88.849,88.776,36.82043113]
[1772614437229,10.129,88.849,88.78,36.83442497]
[1772614437432,14.46596485,88.86,88.791,36.83442497]
[1772614437634,10.128,88.86,88.791,36.83442497]
[1772614437923,10.128,88.86,88.791,46.96942497]
[1772614438124,10.128,88.86,88.792,36.93029693]
[1772614438627,10.126,88.871,88.794,36.93029693]
[1772614438931,10.126,88.871,88.811,36.93029693]
[1772614439226,4.33796485,88.9,88.811,36.93029693]
[1772614439527,10.124,88.895,88.815,36.94494141]
[1772614439734,10.124,88.895,88.81,4.33796485]
[1772614439735,4.33796485,88.9,88.831,36.94494141]
[1772614440125,10.125,88.879,88.831,36.94494141]
[1772614440728,10.125,88.879,88.81,4.33796485]
[1772614440729,4.33796485,88.88,88.81,41.20997159]
[1772614440927,4.33796485,88.88,88.81,36.87200674]
[1772614441326,10.127,88.867,88.81,36.87200674]
[1772614442031,10.128,88.858,88.81,36.87200674]
[1772614442228,4.33796485,88.88,88.81,36.87200674]
[1772614442634,10.128,88.859,88.81,36.87200674]
[1772614443028,4.33796485,88.86,88.81,19.37100674]
[1772614443233,4.33796485,88.86,88.77,4.33796485]
[1772614443432,4.33796485,88.86,88.771,8.05943476]
[1772614443628,4.33796485,88.86,88.772,8.05943476]
[1772614443827,4.33796485,88.86,88.773,8.05943476]
[1772614444136,4.33796485,88.86,88.774,18.19643476]
[1772614444137,10.129,88.85,88.774,18.19643476]
[1772614444329,10.129,88.85,88.774,10.137]
[1772614444629,10.131,88.831,88.761,10.139]
[1772614444827,4.33796485,88.84,88.76,4.33796485]
[1772614445031,20.247,88.899,88.791,28.18555466]
[1772614445236,10.128,88.858,88.791,28.18555466]
[1772614445728,20.247,88.899,88.79,4.33796485]
[1772614445729,10.127,88.869,88.795,28.18555466]
[1772614445932,4.33796485,88.89,88.811,28.18555466]
[1772614446132,4.33796485,88.91,88.831,28.14536594]
[1772614446533,4.33796485,88.94,88.851,28.14536594]
[1772614447031,4.33796485,89.01,88.921,28.15784559]
[1772614447238,4.33796485,89.01,88.941,28.15784559]
[1772614449134,4.33796485,89.05,88.941,28.15784559]
[1772614449135,4.33796485,89.03,88.941,28.15784559]
[1772614449435,4.33796485,89.01,88.921,27.96802028]
[1772614450437,4.33246312,89.0,88.921,27.96802028]
[1772614450634,157.187,89.063,88.941,27.81812933]
[1772614450836,4.33246312,89.02,88.941,27.81812933]
[1772614451428,10.111,89.005,88.941,27.81812933]
[1772614452228,10.111,89.005,88.9,4.33246312]
[1772614452229,4.33246312,89.0,88.901,27.71663467]
[1772614452738,4.33246312,89.0,88.921,27.71663467]
[1772614453131,10.112,88.993,88.921,27.71663467]
[1772614454036,10.114,88.979,88.921,27.71663467]
[1772614454230,4.33246312,89.05,88.921,27.71663467]
[1772614454231,4.33246312,88.99,88.921,27.71663467]
[1772614454741,10.114,88.981,88.921,27.71663467]
[1772614455637,4.33246312,88.99,88.921,27.71663467]
[1772614456636,4.33246312,89.0,88.921,27.71663467]
[1772614456842,10.114,88.983,88.921,27.71663467]
[1772614457432,10.115,88.972,88.921,27.71663467]
[1772614457835,4.33246312,89.0,88.921,27.71663467]
[1772614458640,4.33246312,88.98,88.921,27.71663467]
[1772614459040,10.117,88.953,88.901,28.15167988]
[1772614459545,4.33246312,88.98,88.901,28.15167988]
[1772614460344,10.116,88.965,88.901,28.15167988]
[1772614461640,4.33246312,89.0,88.851,28.15996399]
[1772614461641,4.33246312,88.92,88.851,28.15996399]
[1772614461844,4.33246312,88.95,88.861,28.15996399]
[1772614462243,4.33246312,88.95,88.864,28.1702152]
[1772614462634,4.33246312,88.95,88.88,4.33246312]
[1772614462835,4.33246312,88.99,88.901,28.1702152]
[1772614463342,20.214,89.044,88.906,28.17908278]
[1772614463542,4.33246312,89.0,88.921,28.17908278]
[1772614464145,10.112,88.993,88.921,28.17908278]
[1772614464443,4.33246312,89.0,88.921,28.17908278]
[1772614464840,10.112,88.992,88.921,28.17908278]
[1772614465841,4.33246312,89.0,88.921,28.17908278]
[1772614466042,4.33246312,88.98,88.921,28.17908278]
[1772614466244,4.33246312,88.99,88.921,28.17908278]
[1772614466443,4.33246312,89.05,88.923,28.08996108]
[1772614466648,4.33246312,89.0,88.923,28.08996108]
[1772614467049,4.33246312,88.99,88.928,28.08996108]
[1772614468444,193.41538784,89.059,88.955,26.00450228]
[1772614468445,4.33246312,89.03,88.955,26.00450228]
[1772614469550,10.109,89.019,88.955,26.00450228]
[1772614470938,4.33246312,89.03,88.955,26.00450228]
[1772614470939,10.111,89.009,88.955,26.00450228]
[1772614471146,4.33246312,89.05,88.971,25.93093442]
[1772614471650,10.106,89.045,88.973,25.93093442]
[1772614471850,4.33246312,89.03,88.973,25.93093442]
[1772614473548,4.33246312,89.05,88.9,4.33246312]
[1772614473549,4.33246312,89.01,88.949,25.91942469]
[1772614473945,4.33246312,89.02,88.949,25.91942469]
[1772614474140,10.111,89.008,88.949,25.91942469]
[1772614474441,4.33246312,89.02,88.951,25.74771196]
[1772614474640,10.109,89.019,88.951,25.74771196]
[1772614475443,4.33246312,89.02,88.953,25.75344206]
[1772614475648,10.108,89.03,88.953,25.75344206]
[1772614476251,4.33246312,89.04,88.965,25.80186626]
[1772614477653,4.33246312,89.06,88.971,25.80769661]
[1772614477852,4.33246312,89.06,88.976,25.80769661]
[1772614478154,4.33246312,89.04,88.976,25.80769661]
[1772614480149,4.33246312,89.03,88.976,25.80769661]
[1772614480454,4.33246312,89.01,88.93,4.33246312]
[1772614480849,10.114,88.981,88.911,10.122]
[1772614481048,4.33246312,89.01,88.911,10.122]
[1772614481549,4.33246312,88.99,88.847,157.568]
[1772614481849,4.33246312,88.99,88.91,4.33246312]
[1772614482246,4.33246312,88.99,88.911,17.03487658]
[1772614483046,4.33246312,89.0,88.911,17.03487658]
[1772614483252,177.438,89.042,88.911,17.03487658]
[1772614483452,4.33246312,89.0,88.911,17.03487658]
[1772614483850,4.33246312,89.0,88.913,17.04113497]
[1772614483851,10.113,88.99,88.913,17.04113497]
[1772614484749,10.113,88.99,88.917,17.03298011]
[1772614485155,10.114,88.98,88.917,17.03298011]
[1772614485956,4.33246312,89.0,88.917,17.03298011]
[1772614486162,4.33246312,89.04,88.951,14.79977058]
[1772614486459,4.33246312,89.02,88.951,14.79977058]
[1772614488059,10.39894858,89.039,88.951,14.79977058]
[1772614488656,10.79865137,89.021,88.951,14.79977058]
[1772614488859,4.33246312,89.02,88.951,14.79977058]
[1772614489256,10.112,89.0,88.951,14.79977058]
[1772614489461,10.92974141,89.04,88.961,15.67915931]
[1772614489661,15.26220453,89.04,88.961,15.67915931]
[1772614490066,10.107,89.043,88.981,15.67915931]
[1772614492455,10.108,89.031,88.981,15.67915931]
[1772614492654,10.108,89.031,88.931,13.19848245]
[1772614492655,11.23580258,89.075,89.001,15.67915931]
[1772614493060,11.23580258,89.059,88.981,15.67915931]
[1772614493363,4.33246312,89.04,88.981,15.67915931]
[1772614493560,10.27432829,89.08,88.981,15.67915931]
[1772614493766,16.84473157,89.12,89.031,15.67915931]
[1772614494159,16.84473157,89.12,89.034,10.108]
[1772614494460,16.84473157,89.12,89.035,15.67915931]
[1772614494765,16.84473157,89.109,89.012,15.67915931]
[1772614495470,16.84473157,89.089,89.012,15.67915931]
[1772614496264,16.84473157,89.089,89.014,15.67915931]
[1772614497064,16.84473157,89.089,89.031,15.67915931]
[1772614497464,16.84473157,89.109,89.033,15.67915931]
[1772614497860,16.84473157,89.109,89.0,4.33246312]
[1772614497861,16.84473157,89.109,89.041,15.67915931]
[1772614499268,16.84473157,89.129,89.045,15.67915931]
[1772614499762,16.84473157,89.129,89.065,10.104]
[1772614499967,16.84473157,89.139,89.066,15.67915931]
[1772614500164,16.84473157,89.139,89.08,4.33246312]
[1772614500366,16.84473157,89.157,89.081,15.67915931]
[1772614500564,10.094,89.156,89.081,15.67915931]
[1772614500765,4.33246312,89.16,89.081,15.67915931]
[1772614500968,16.84473157,89.177,89.106,10.099]
[1772614501264,16.84473157,89.177,89.1,4.33246312]
[1772614501265,16.84473157,89.243,89.141,15.67915931]
[1772614501461,16.84473157,89.243,89.171,15.67915931]
[1772614501760,16.84473157,89.243,89.091,20.203]
[1772614501761,16.84473157,89.264,89.191,15.67915931]
[1772614502367,4.33246312,89.3,89.211,15.67915931]
[1772614502368,16.84473157,89.299,89.211,15.67915931]
[1772614502563,16.84473157,89.299,89.131,157.066]
[1772614502564,16.84473157,89.239,89.112,15.67915931]
[1772614502766,156.753,89.31,89.141,15.67915931]
[1772614502767,16.84473157,89.219,89.141,15.67915931]
[1772614503071,16.84473157,89.199,89.119,15.67915931]
[1772614503364,16.84473157,89.199,89.064,428.19554375]
[1772614503365,16.84473157,89.199,89.121,15.67915931]
[1772614503868,4.33246312,89.2,89.121,15.67915931]
[1772614504061,21.17719469,89.2,89.121,15.67915931]
[1772614504258,4.33246312,89.18,89.121,15.67915931]
[1772614505566,16.84473157,89.199,89.121,15.67915931]
[1772614505957,16.84473157,89.179,89.099,15.67915931]
[1772614506157,4.33246312,89.16,89.099,15.67915931]
[1772614506664,16.84473157,89.159,89.074,15.67915931]
[1772614506869,4.33246312,89.18,89.081,15.67915931]
[1772614507072,4.33246312,89.18,89.101,15.67915931]
[1772614507470,4.33246312,89.19,89.101,15.67915931]
[1772614507671,4.33246312,89.19,89.121,15.67915931]
[1772614507867,10.09,89.187,89.121,15.67915931]
[1772614508172,16.84473157,89.189,89.121,15.67915931]
[1772614508967,4.33246312,89.19,89.121,15.67915931]
[1772614509770,10.089,89.204,89.131,15.67915931]
[1772614510269,16.84473157,89.212,89.131,15.67915931]
[1772614510567,10.086,89.225,89.151,15.67915931]
[1772614510775,4.33246312,89.23,89.151,15.67915931]
[1772614510968,16.84473157,89.234,89.151,15.67915931]
[1772614510969,10.085,89.233,89.151,15.67915931]
[1772614511172,4.33246312,89.22,89.151,15.67915931]
[1772614511972,16.84473157,89.232,89.161,15.67915931]
[1772614512271,10.085,89.231,89.161,15.67915931]
[1772614513174,10.084,89.245,89.161,15.67915931]
[1772614513471,10.084,89.245,89.181,15.67915931]
[1772614514673,4.30880675,89.27,89.181,15.67915931]
[1772614514974,4.30880675,89.27,89.073,179.7]
[1772614514975,16.84473157,89.339,89.231,15.67915931]
[1772614515171,4.30880675,89.32,89.25,19.98796606]
[1772614515376,16.84473157,89.315,89.24,4.30880675]
[1772614515670,4.30880675,89.33,89.241,15.67915931]
[1772614515870,16.84473157,89.359,89.261,15.67915931]
[1772614516072,16.84473157,89.349,89.261,15.67915931]
[1772614516871,14.37980675,89.36,89.28,4.30880675]
[1772614517175,21.15353832,89.36,89.281,15.67915931]
[1772614517372,10.071,89.357,89.281,15.67915931]
[1772614517580,4.30880675,89.34,89.261,15.67915931]
[1772614518072,16.84473157,89.359,89.28,4.30880675]
[1772614518273,10.62900344,89.378,89.28,4.30880675]
[1772614518274,4.30880675,89.37,89.281,15.67915931]
[1772614518477,10.62900344,89.378,89.301,17.82055587]
[1772614519768,18.36950512,89.377,89.301,17.82055587]
[1772614519972,4.30880675,89.37,89.301,17.82055587]
[1772614520383,10.62900344,89.378,89.26,17.82055587]
[1772614520384,4.30880675,89.33,89.26,17.82055587]
[1772614520675,4.30880675,89.32,89.26,17.82055587]
[1772614520883,4.30880675,89.33,89.26,17.82055587]
[1772614521085,4.30880675,89.32,89.26,17.82055587]
[1772614521271,10.62900344,89.378,89.26,17.82055587]
[1772614521272,156.649,89.369,89.26,17.82055587]
[1772614521467,17.86327581,89.377,89.281,19.20949726]
[1772614521667,17.86327581,89.369,89.281,19.20949726]
[1772614522072,10.071,89.359,89.281,19.20949726]
[1772614522279,10.62900344,89.378,89.3,23.51830401]
[1772614522471,10.07,89.365,89.3,23.51830401]
[1772614523378,10.072,89.353,89.3,23.51830401]
[1772614523674,22.17208256,89.37,89.28,4.30880675]
[1772614523975,10.074,89.329,89.276,19.20949726]
[1772614524472,4.30880675,89.36,89.276,19.20949726]
[1772614524679,17.86327581,89.36,89.276,19.20949726]
[1772614524878,10.62900344,89.378,89.291,19.20949726]
[1772614525272,10.62900344,89.378,89.25,4.30880675]
[1772614525273,10.62900344,89.378,89.311,19.20949726]
[1772614525476,10.62900344,89.378,89.331,19.20949726]
[1772614525778,10.62900344,89.378,89.227,156.897]
[1772614525779,10.62900344,89.378,89.31,4.30880675]
[1772614525974,17.86327581,89.377,89.302,19.20949726]
[1772614526979,10.069,89.373,89.302,19.20949726]
[1772614527876,10.62900344,89.378,89.311,19.20949726]
[1772614528076,17.86327581,89.377,89.3,4.30880675]
[1772614528282,4.30880675,89.36,89.289,19.20949726]
[1772614528874,10.62900344,89.378,89.306,19.20949726]
[1772614529383,10.069,89.376,89.306,19.20949726]
[1772614529680,4.30880675,89.37,89.306,19.20949726]
[1772614530076,17.86327581,89.377,89.306,19.20949726]
[1772614530576,10.62900344,89.378,89.306,19.20949726]
[1772614530779,10.62900344,89.378,89.251,156.855]
[1772614530780,10.62900344,89.378,89.311,19.20949726]
[1772614531880,17.86327581,89.377,89.311,19.20949726]
[1772614532276,10.62900344,89.378,89.311,19.20949726]
[1772614533486,50.0,89.4,89.331,19.20949726]
[1772614533780,50.0,89.4,89.222,156.905]
[1772614533781,17.86327581,89.399,89.31,4.30880675]
[1772614533973,17.86327581,89.399,89.308,19.20949726]
[1772614534285,17.86327581,89.399,89.32,4.30880675]
[1772614534286,10.068,89.381,89.32,4.30880675]
[1772614534678,17.86327581,89.399,89.32,4.30880675]
[1772614534883,10.07,89.371,89.308,19.20949726]
[1772614535080,17.86327581,89.371,89.308,19.20949726]
[1772614535385,4.30880675,89.38,89.308,19.20949726]
[1772614535386,17.86327581,89.379,89.308,19.20949726]
[1772614536484,4.30880675,89.36,89.287,19.20949726]
[1772614536676,4.30880675,89.36,89.28,4.30880675]
[1772614536677,4.30880675,89.36,89.289,19.20949726]
[1772614536879,17.86327581,89.379,89.3,4.30880675]
[1772614537075,17.86327581,89.379,89.301,19.20949726]
[1772614537276,17.86327581,89.395,89.319,19.20949726]
[1772614537978,17.86327581,89.389,89.319,19.20949726]
[1772614538377,10.069,89.376,89.319,19.20949726]
[1772614538576,17.86327581,89.389,89.319,19.20949726]
[1772614539385,10.07,89.369,89.319,19.20949726]
[1772614539980,17.86327581,89.389,89.319,19.20949726]
[1772614540183,17.86327581,89.389,89.298,19.20949726]
[1772614540384,17.86327581,89.369,89.298,19.20949726]
[1772614540584,17.86327581,89.349,89.277,19.20949726]
[1772614540784,17.86327581,89.349,89.261,19.20949726]
[1772614541193,10.074,89.333,89.263,19.20949726]
[1772614542496,4.30880675,89.35,89.2,161.25380675]
[1772614542497,17.86327581,89.329,89.242,19.20949726]
[1772614542690,17.86327581,89.309,89.242,19.20949726]
[1772614543588,17.86327581,89.332,89.251,19.20949726]
[1772614543794,17.86327581,89.39,89.251,19.20949726]
[1772614543993,22.17208256,89.35,89.271,19.20949726]
[1772614544191,50.0,89.4,89.271,19.20949726]
[1772614544398,17.86327581,89.369,89.28,23.51830401]
[1772614544602,10.071,89.357,89.28,23.51830401]
[1772614544802,17.86327581,89.369,89.28,23.51830401]
[1772614545006,17.86327581,89.369,89.301,19.20949726]
[1772614545207,10.072,89.349,89.28,23.51830401]
[1772614545802,17.86327581,89.359,89.28,19.20949726]
[1772614546103,22.17208256,89.34,89.261,19.20949726]
[1772614546704,10.074,89.328,89.261,19.20949726]
[1772614546907,22.17208256,89.34,89.261,19.20949726]
[1772614547804,22.17208256,89.36,89.281,19.20949726]
[1772614548010,17.86327581,89.36,89.281,19.20949726]
[1772614548310,22.17208256,89.36,89.281,19.20949726]
[1772614548506,22.17208256,89.36,89.282,20.76018166]
[1772614549508,17.86327581,89.36,89.282,20.76018166]
[1772614550108,24.27229935,89.38,89.284,20.76018166]
[1772614551302,10.07,89.369,89.289,10.079]
[1772614551509,19.9634926,89.38,89.301,20.76018166]
[1772614551807,10.071,89.36,89.301,20.76018166]
[1772614552514,24.27229935,89.38,89.303,20.76018166]
[1772614552714,24.27229935,89.38,89.305,20.76018166]